Cogmind - Beta 13 @@@ ROGUE MODE // 2024.05.30 @ 11:53:05 Player: g30rg3 Result: Self-destructed Performance ------------- Evolutions (4) 2000 Regions Visited (7) 1400 Robots Destroyed (34) 170 Value Destroyed (1377) 1377 Prototype IDs (23) 460 Alien Tech Used (0) 0 Bonus (300) 300 TOTAL SCORE: 5707 Bonus ------- Aligned with FarCom 300 Cogmind --------- Core Integrity 699/850 Matter 147/300 Energy 290/290 System Corruption 1% Temperature Cool (0) Movement Core (650) Ox12 Location -6/Factory Parts ------- > --- POWER (2) -------- Improved Deuterium Engine > --- PROPULSION (5) --- Carbon-fiber Leg > --- UTILITY (5) ------ Huge Storage Unit Weight Redist. System Improved Terrain Scanner Advanced Terrain Scan Processor Improved Medium Armor Plating > --- WEAPON (3) ------- Shotgun Shotgun Heavy Flak Cannon > --- INVENTORY (25) --- Improved Deuterium Engine Improved Deuterium Engine Micro Nuclear Core Light Fission Core Improved Heat Sink Improved Heat Sink Superbattery (1500) Advanced Targeting Computer Advanced Targeting Computer Improved Medium Armor Plating Improved Medium Armor Plating Hardlight Generator High-powered Tractor Beam Shotgun Shotgun Peak State ------------ > --- POWER ------------ Improved Deuterium Engine Light Fission Core > --- PROPULSION ------- Light Treads Light Treads Carbon-fiber Leg > --- UTILITY ---------- Huge Storage Unit Weight Redist. System Improved Terrain Scanner Advanced Terrain Scan Processor Improved Medium Armor Plating > --- WEAPON ----------- Shotgun Shotgun Heavy Flak Cannon > --- INVENTORY -------- Improved Deuterium Engine Improved Deuterium Engine Micro Nuclear Core Light Fission Core Improved Heat Sink Improved Heat Sink Superbattery Advanced Targeting Computer Advanced Targeting Computer Improved Medium Armor Plating Improved Medium Armor Plating Hardlight Generator High-powered Tractor Beam Shotgun Shotgun [Rating: 42] Favorites ----------- Power Improved Deuterium Engine Engine Improved Deuterium Engine Power Core Light Nuclear Core Propulsion Aluminum Leg Treads Light Treads Leg Aluminum Leg Utility Improved Terrain Scanner Device Improved Terrain Scanner Storage Large Storage Unit Processor Advanced Terrain Scan Processor Protection Improved Medium Armor Plating Weapon Shotgun Energy Gun Small Laser Ballistic Gun Shotgun Ballistic Cannon Heavy Flak Cannon Launcher Grenade Launcher Build | -11 -10 -10 -10 -9 -8 -7 -6 ------- Run | Yrd Mat Min Exi Min Mat Fac Fac Slots Evolved 8 | . . . . . 4 2 2 Power 1 | . . . . . . 1 . Propulsion 3 | . . . . . 2 . 1 Utility 3 | . . . . . 2 1 . Weapon 1 | . . . . . . . 1 Parts Attached 50 | 7 1 4 1 . 25 4 8 Power 9 | 1 1 . . . 4 1 2 Engine 5 | 1 1 . . . 1 1 1 Core 4 | . . . . . 3 . 1 Reactor . | . . . . . . . . Propulsion 11 | 2 . 1 . . 7 . 1 Treads 2 | . . . . . 2 . . Leg 9 | 2 . 1 . . 5 . 1 Wheel . | . . . . . . . . Hover . | . . . . . . . . Flight . | . . . . . . . . Utility 14 | 2 . . . . 9 2 1 Device 8 | 1 . . . . 6 1 . Storage 3 | 1 . . . . 1 . 1 Processor 1 | . . . . . . 1 . Hackware . | . . . . . . . . Protection 2 | . . . . . 2 . . Artifact . | . . . . . . . . Weapon 16 | 2 . 3 1 . 5 1 4 Energy Gun 3 | 1 . 1 . . 1 . . Energy Cannon . | . . . . . . . . Ballistic Gun 8 | 1 . 1 . . 3 1 2 Ballistic Cannon 2 | . . . . . . . 2 Launcher 3 | . . 1 1 . 1 . . Special Weapon . | . . . . . . . . Impact Weapon . | . . . . . . . . Slashing Weapon . | . . . . . . . . Piercing Weapon . | . . . . . . . . Special Melee Weapon . | . . . . . . . . Unidentified Prototypes . | . . . . . . . . Parts Lost 19 | . . . . . 15 . 4 Power 1 | . . . . . . . 1 Propulsion 9 | . . . . . 7 . 2 Utility 4 | . . . . . 4 . . Weapon 5 | . . . . . 4 . 1 Highest Loss Streak 3 | . . . . . 3 . 3 To Critical Strikes . | . . . . . . . . Average Slot Usage (%) 85 | . 100 100 100 100 82 83 78 Engine 10 | . 14 14 14 14 4 15 11 Core 1 | . . . . . 4 . 1 Treads 6 | . . . . . 3 15 12 Leg 14 | . 28 28 28 28 22 . . Device 15 | . 14 14 14 14 18 20 13 Storage 9 | . 14 14 14 14 9 7 6 Processor 2 | . . . . . . 2 6 Protection 3 | . . . . . 3 7 6 Energy Gun 3 | . 14 14 14 14 . . . Ballistic Gun 10 | . 14 6 . . 12 14 13 Ballistic Cannon 1 | . . . . . . . 4 Launcher 3 | . . 7 14 14 3 . . Naked Turns . | . . . . . . . . Heaviest Build 122 | 12 14 15 15 15 44 55 122 Greatest Support 51 | 20 20 25 25 25 51 46 46 Greatest Overweight (x) 4 | . . . . . 4 1 2 Average Overweight (x) . | . . . . . . 1 1 Largest Inventory Capacity 25 | 8 8 8 8 8 15 15 25 Average Capacity 13 | 7 8 8 8 8 13 15 18 Most Carried 16 | 5 8 8 8 8 15 15 16 Average Carried 9 | 3 5 7 7 8 6 13 14 Final Capacity 25 | 8 8 8 8 8 15 15 25 Final Carried 15 | 4 8 8 8 8 15 14 15 Class Distribution -------------------- 43% | Skirmisher 43% | Mutant 13% | Scavenger-Mutant Dominant Class ---------------- Mutant | -10/Materials Mutant | -10/Mines Mutant | -10/Exiles Mutant | -9/Mines Scavenger-Mutant | -8/Materials Skirmisher | -7/Factory Skirmisher | -6/Factory Resources | -11 -10 -10 -10 -9 -8 -7 -6 ----------- Run | Yrd Mat Min Exi Min Mat Fac Fac Matter Collected 1378 | 273 67 60 . . 638 . 340 Remotely 498 | . . . . . 498 . . Salvage Created 1061 | 98 . . . . 728 . 235 Parts 53 | 9 . . . . 31 . 13 Haulers Intercepted . | . . . . . . . . Recyclers Shooed 1 | 1 . . . . . . . Parts Field Recycled . | . . . . . . . . Retrieved Matter . | . . . . . . . . Parts Self-Destructed . | . . . . . . . . Prevented . | . . . . . . . . Kills | -11 -10 -10 -10 -9 -8 -7 -6 ------- Run | Yrd Mat Min Exi Min Mat Fac Fac Combat Hostiles Destroyed 29 | . . . . . 22 . 7 Guns 23 | . . . . . 16 . 7 AOE 6 | . . . . . 6 . . Classes Destroyed 9 | 2 . . . . 4 . 3 Worker 1 | . . . . . . . 1 Builder 1 | . . . . . 1 . . Tunneler 2 | 2 . . . . . . . Recycler 1 | 1 . . . . . . . Swarmer 3 | . . . . . . . 3 Grunt 22 | . . . . . 19 . 3 Sentry 2 | . . . . . 2 . . Programmer 1 | . . . . . . . 1 Heavy 1 | . . . . . 1 . . Best Kill Streak 5 | 2 . . . . 5 . 4 Combat Bots Only 5 | . . . . . 5 . 3 Max Kills in Single Turn 2 | 1 . . . . 2 . 1 Gunslinging . | . . . . . . . . Exploded 1 | . . . . . 1 . . Melee . | . . . . . . . . Uniques/NPCs Destroyed . | . . . . . . . . Combat | -11 -10 -10 -10 -9 -8 -7 -6 -------- Run | Yrd Mat Min Exi Min Mat Fac Fac Hostile Shots Fired 220 | . . . . . 132 4 84 Missed 55 | . . . . . 35 2 18 Damage Taken 2949 | . . . . . 1822 30 1097 Core 353 | . . . . . 202 . 151 Absorbed by Shields . | . . . . . . . . Core Remaining (%) 90 | 100 . . . 100 63 100 . Volleys Fired 134 | 23 . . . . 78 . 33 Largest 3 | 1 . . . . 2 . 3 Hottest 99 | 40 . . . . 65 . 99 Shots Fired 202 | 23 . . . . 109 . 70 Gun 184 | 23 . . . . 95 . 66 Cannon 4 | . . . . . . . 4 Launcher 14 | . . . . . 14 . . Special . | . . . . . . . . Kinetic 164 | 1 . . . . 93 . 70 Thermal 24 | 22 . . . . 2 . . Explosive 14 | . . . . . 14 . . Electromagnetic . | . . . . . . . . Robot Hit Streak 12 | 6 . . . . 12 . 9 Robot Miss Streak 7 | 7 . . . . 6 . 5 Penetration Max . | . . . . . . . . Secondary Targets 4 | . . . . . 2 . 2 Max Gunslinging Chain 1 | . . . . . 1 . 1 Shots Hit Robots 154 | 11 . . . . 87 . 56 Core Hits 96 | 4 . . . . 63 . 29 Critical Kills . | . . . . . . . . Critical Parts Destroyed 1 | . . . . . 1 . . Critical Strikes 1 | . . . . . 1 . . Destroy 1 | . . . . . 1 . . Melee Attacks . | . . . . . . . . Impact . | . . . . . . . . Slashing . | . . . . . . . . Piercing . | . . . . . . . . Sneak Attacks . | . . . . . . . . Combat Hostiles . | . . . . . . . . Follow-up Attacks . | . . . . . . . . Damage Inflicted 3449 | 118 . . . . 2472 . 859 Guns 2446 | 118 . . . . 1521 . 807 Cannons 52 | . . . . . . . 52 Explosions 951 | . . . . . 951 . . Melee . | . . . . . . . . Ramming . | . . . . . . . . Kinetic 2368 | . . . . . 1509 . 859 Thermal 130 | 118 . . . . 12 . . Explosive 951 | . . . . . 951 . . Electromagnetic . | . . . . . . . . Impact . | . . . . . . . . Slashing . | . . . . . . . . Piercing . | . . . . . . . . Highest Corruption 1 | . . . . . . . 1 Average Corruption 1 | . . . . . . . 1 Corruption Purged . | . . . . . . . . Corruption Blocked . | . . . . . . . . Effects 1 | . . . . . . . 1 Message Errors 1 | . . . . . . . 1 Overload Shots . | . . . . . . . . Overflow Damage 19 | . . . . . 19 . . Projectiles . | . . . . . . . . Explosions 19 | . . . . . 19 . . Melee . | . . . . . . . . Knockbacks 4 | . . . . . . . 4 Impact . | . . . . . . . . Kinetic 4 | . . . . . . . 4 Secondary . | . . . . . . . . Self-Inflicted Damage 45 | . . . . . 45 . . Shots 2 | . . . . . 2 . . Rammed . | . . . . . . . . Targets Rammed . | . . . . . . . . Kicked . | . . . . . . . . Crushed . | . . . . . . . . Highest Temperature 128 | 20 . . . . 45 9 128 Average Temperature 46 | 16 . . . . 18 9 75 Received Heat Transfer 1008 | . . . . . 801 36 171 Siege Activations . | . . . . . . . . Robots Corrupted . | . . . . . . . . Combat Hostiles . | . . . . . . . . Parts Fried . | . . . . . . . . Impact Corruptions . | . . . . . . . . Robots Melted . | . . . . . . . . Combat Hostiles . | . . . . . . . . Parts Melted . | . . . . . . . . Heat Transferred 300 | 275 . . . . 25 . . Parts Sabotaged . | . . . . . . . . Parts Stolen . | . . . . . . . . Parts Stripped . | . . . . . . . . Power Chain Reactions . | . . . . . . . . Alert | -11 -10 -10 -10 -9 -8 -7 -6 ------- Run | Yrd Mat Min Exi Min Mat Fac Fac Peak Influence 399 | 15 19 12 . 5 399 145 140 Initial 130 | . 9 7 . . 1 130 70 Average 114 | 5 14 7 . . 269 135 45 Maximum Alert Level 1 | . . . . . 1 . . Low Security (%) 78 | 100 100 100 . 100 29 100 100 Level 1 21 | . . . . . 70 . . Level 2 . | . . . . . . . . Level 3 . | . . . . . . . . Level 4 . | . . . . . . . . Level 5 . | . . . . . . . . High Security . | . . . . . . . . Max Security . | . . . . . . . . Squads Dispatched 14 | . . 1 . . 10 1 2 Investigation 2 | . . 1 . . 1 . . Extermination 1 | . . . . . . . 1 Reinforcement 8 | . . . . . 6 1 1 Assault . | . . . . . . . . Garrison 3 | . . . . . 3 . . Intercept . | . . . . . . . . Searches Triggered . | . . . . . . . . Construction Impeded 3 | . . . . . 3 . . Haulers Reinforced . | . . . . . . . . Active Scanning Responses . | . . . . . . . . Cargo Convoy Interrupts . | . . . . . . . . Stealth | -11 -10 -10 -10 -9 -8 -7 -6 --------- Run | Yrd Mat Min Exi Min Mat Fac Fac Distress Signals 2 | . . . . . 2 . . Communications Jammed . | . . . . . . . . Distress Signals . | . . . . . . . . Times Spotted 42 | . . . . . 29 3 10 Peak Tracking Total 7 | . . . . . 7 4 3 Tactical Retreats 5 | . . . . . 5 . . Traps | -11 -10 -10 -10 -9 -8 -7 -6 ------- Run | Yrd Mat Min Exi Min Mat Fac Fac Traps Triggered 2 | . . . . . 1 . 1 Indirectly . | . . . . . . . . Trap Hack Attempts . | . . . . . . . . Triggered . | . . . . . . . . Disarmed . | . . . . . . . . Reprogrammed . | . . . . . . . . Reused . | . . . . . . . . Traps Extracted . | . . . . . . . . Installed . | . . . . . . . . Triggered . | . . . . . . . . Machines | -11 -10 -10 -10 -9 -8 -7 -6 ---------- Run | Yrd Mat Min Exi Min Mat Fac Fac Machines Disabled 1 | . . . . . 1 . . Max in Single Turn 1 | . . . . . 1 . . Machines Repaired . | . . . . . . . . Machines Dismantled . | . . . . . . . . Machines Sabotaged . | . . . . . . . . Overloaded Fab Kills . | . . . . . . . . Hacking | -11 -10 -10 -10 -9 -8 -7 -6 --------- Run | Yrd Mat Min Exi Min Mat Fac Fac Machines Accessed 10 | . 2 2 5 1 . . . Terminals 4 | . 2 1 . 1 . . . Fabricators . | . . . . . . . . Repair Stations . | . . . . . . . . Recycling Units . | . . . . . . . . Scanalyzers . | . . . . . . . . Garrison Access . | . . . . . . . . Total Hacks 67 | . 10 4 50 3 . . . Successful 58 | . 4 3 50 1 . . . Failed 9 | . 6 1 . 2 . . . Catastrophic 4 | . 3 . . 1 . . . Database Lockouts . | . . . . . . . . Manual 9 | . 6 . 1 2 . . . Terminals 16 | . 10 3 . 3 . . . Fabricators . | . . . . . . . . Repair Stations . | . . . . . . . . Recycling Units . | . . . . . . . . Scanalyzers . | . . . . . . . . Garrison Access . | . . . . . . . . Terminal Hacks 58 | . 4 3 50 1 . . . Record 49 | . . . 49 . . . . Robot Analysis 2 | . 2 . . . . . . Open Door 1 | . . 1 . . . . . Dispatch Records 1 | . . 1 . . . . . Hauler Manifests 1 | . 1 . . . . . . Zone Layout 3 | . 1 1 . 1 . . . Derelict Proto ID Bank 1 | . . . 1 . . . . Fabricator Hacks . | . . . . . . . . Repair Station Hacks . | . . . . . . . . Recycling Unit Hacks . | . . . . . . . . Scanalyzer . | . . . . . . . . Garrison Access Hacks . | . . . . . . . . Unauthorized Hacks . | . . . . . . . . Terminals . | . . . . . . . . Fabricators . | . . . . . . . . Repair Stations . | . . . . . . . . Recycling Units . | . . . . . . . . Scanalyzers . | . . . . . . . . Garrison Access . | . . . . . . . . Data Cores Recovered . | . . . . . . . . Used . | . . . . . . . . Hacking Detections 3 | . 1 1 . 1 . . . Full Trace Events . | . . . . . . . . Feedback Events . | . . . . . . . . Feedback Blocked . | . . . . . . . . Robot Schematics Acquired . | . . . . . . . . Robots Built . | . . . . . . . . Authchips . | . . . . . . . . Time . | . . . . . . . . Total Robot Build Rating . | . . . . . . . . Part Schematics Acquired . | . . . . . . . . Parts Built . | . . . . . . . . Authchips . | . . . . . . . . Time . | . . . . . . . . Total Part Build Rating . | . . . . . . . . Parts Repaired . | . . . . . . . . Time . | . . . . . . . . Parts Recycled . | . . . . . . . . Recycled Matter . | . . . . . . . . Retrieved Matter . | . . . . . . . . Retrieved Components . | . . . . . . . . Parts Scanalyzed . | . . . . . . . . Part Schematics Acquired . | . . . . . . . . Parts Damaged . | . . . . . . . . Bothacking | -11 -10 -10 -10 -9 -8 -7 -6 ------------ Run | Yrd Mat Min Exi Min Mat Fac Fac Used RIF Installer . | . . . . . . . . Robots Hacked . | . . . . . . . . Non-combat . | . . . . . . . . Combat . | . . . . . . . . Robot Hacks Applied . | . . . . . . . . Relay Couplers Released . | . . . . . . . . Fabnet Peak Effective % . | . . . . . . . . Robots Rewired . | . . . . . . . . Allies Hacked . | . . . . . . . . Hacks Repelled . | . . . . . . . . Allies | -11 -10 -10 -10 -9 -8 -7 -6 -------- Run | Yrd Mat Min Exi Min Mat Fac Fac Total Allies 2 | . . 2 . . . . . Largest Group 2 | . . 2 1 . . . . Highest-Rated Group 41 | . . 41 31 . . . . Highest-Rated Ally 31 | . . 31 31 . . . . Total Orders . | . . . . . . . . Ally Attacks . | . . . . . . . . Total Damage . | . . . . . . . . Kills . | . . . . . . . . Allies Corrupted . | . . . . . . . . Allies Melted . | . . . . . . . . Intel | -11 -10 -10 -10 -9 -8 -7 -6 ------- Run | Yrd Mat Min Exi Min Mat Fac Fac Robot Analysis Total 2 | . 2 . . . . . . Derelict Logs Recovered 1 | . . 1 . . . . . Drone Launches . | . . . . . . . . Drone Recoveries . | . . . . . . . . Exploration | -11 -10 -10 -10 -9 -8 -7 -6 ------------- Run | Yrd Mat Min Exi Min Mat Fac Fac Turns Passed 3222 | 130 86 414 334 12 894 246 1106 Spaces Moved 1538 | 60 67 320 275 11 353 75 377 Core 4 | 4 . . . . . . . Treads 532 | . . . . . 80 75 377 Legs 1002 | 56 67 320 275 11 273 . . Wheels . | . . . . . . . . Hover . | . . . . . . . . Flight . | . . . . . . . . Fastest Speed 50 | 50 120 120 120 120 120 240 160 Average Speed 167 | 115 120 120 120 120 153 240 261 Slowest Speed 400 | 120 120 120 120 120 400 240 320 Overloaded Moves . | . . . . . . . . Propulsion Burnouts . | . . . . . . . . Robots Hopped . | . . . . . . . . Cave-ins Triggered . | . . . . . . . . Exploration Rate (%) 25 | 5 18 75 62 6 28 2 10 Regions Visited 7 Branch Regions 3 Pre-discovered Areas 1 | . . . 1 . . . . Known Exits Taken . | . . . . . . . . Unknown Exits Taken 7 | 1 1 1 1 1 1 1 . Scrap Searched 1 | . . 1 . . . . . Spaces Dug . | . . . . . . . . Terrain Destroyed 109 | . . . . . 109 . . Melee . | . . . . . . . . Projectile . | . . . . . . . . AOE 109 | . . . . . 109 . . Terrain Rammed . | . . . . . . . . Walls Destroyed . | . . . . . . . . Machines Disabled . | . . . . . . . . Actions | -11 -10 -10 -10 -9 -8 -7 -6 --------- Run | Yrd Mat Min Exi Min Mat Fac Fac Total 1978 | 95 72 353 280 10 595 143 430 Wait 200 | . . 19 . . 112 61 8 Move 1531 | 59 66 319 274 10 352 74 377 Hop . | . . . . . . . . Pick Up 38 | 6 4 5 2 . 18 1 2 Fast Attach 20 | 5 . . . . 9 1 5 Attach 16 | 2 . . 1 . 9 3 1 Detach 3 | . . . . . 1 2 . Swap 14 | . 1 4 . . 7 . 2 Drop 21 | . 1 6 2 . 9 1 2 Fire 134 | 23 . . . . 78 . 33 Melee . | . . . . . . . . Ram . | . . . . . . . . Kick . | . . . . . . . . Crush . | . . . . . . . . Escape Stasis . | . . . . . . . . Rewire 1 | . . . 1 . . . . Trap . | . . . . . . . . Miscellaneous . | . . . . . . . . Route ------- -11/Scrapyard -10/Materials -10/Mines (discovered 2 exits: [*Mat] / *Exi) -10/Exiles -9/Mines -8/Materials -7/Factory -6/Factory History --------- Turn | Location | Event 14 | -11/Scrapyard | Discovered new exit (range 14) 131 | -11/Scrapyard | Entered Materials 170 | -10/Materials | Discovered new exit (range 15) 217 | -10/Materials | Entered Mines 315 | -10/Mines | Build established: Mutant 390 | -10/Mines | Discovered new exit (range 6) 419 | -10/Mines | Met a Derelict shopkeep closing up shop 625 | -10/Mines | Deemed a non-threat by the Exiles lab entrance 626 | -10/Mines | Discovered new exit (range 5) 631 | -10/Mines | Entered Exiles 631 | -10/Exiles | Accompanied by 1 ally 661 | -10/Exiles | Led the pair of lost Derelicts to a safe place 662 | -10/Exiles | Met 8R-AWN 683 | -10/Exiles | Met EX-HEX 730 | -10/Exiles | Met EX-BIN 754 | -10/Exiles | Aligned with FarCom system 755 | -10/Exiles | Given EX-Vault access code 811 | -10/Exiles | Opened EX-Vault 825 | -10/Exiles | Found Superbattery 854 | -10/Exiles | Warned to stay clear of 0b10 Research branches 862 | -10/Exiles | Exiles lab attacked by MAIN.C 899 | -10/Exiles | Learned location of Zion (-6) 952 | -10/Exiles | Discovered new exit (range 14) 965 | -10/Exiles | Left Exiles lab with Superbattery 965 | -10/Exiles | Entered Mines 965 | -9/Mines | Discovered new exit (range 6) 977 | -9/Mines | Entered Materials 977 | -8/Materials | Evolved 4 slots: Propulsion x2, Utility x2 1340 | -8/Materials | Lost 3 parts (1u2w) 1514 | -8/Materials | Garrison activated, responded to threat 1665 | -8/Materials | Build established: Scavenger-Mutant 1713 | -8/Materials | Discovered new exit (range 16) 1871 | -8/Materials | Entered Factory 1871 | -7/Factory | Evolved 2 slots: Power x1, Utility x1 2067 | -7/Factory | Discovered new exit (range 15) 2115 | -7/Factory | Build established: Skirmisher 2117 | -7/Factory | Entered another Factory area 2117 | -6/Factory | Evolved 2 slots: Propulsion x1, Weapon x1 3223 | -6/Factory | Self-destructed Last Messages --------------- Acquired 57 matter. R-10 Processor collects Lgt. Ion Engine. Acquired 33 matter. R-10 Processor collects Imp. Deuterium Engine. R-10 Processor collects Lgt. Angular Momentum Engine. R-10 Processor collects Hvy. Laser. R-10 Processor collects Wheel. Penetrated by Slug. K-01 Serf destroyed. Penetrated by Slug. Lgt. Treads destroyed. Penetrated by Slug. R-10 Processor collects Wheel. Penetrated by Slug. Lgt. Treads destroyed. Penetrated by Slug. Lgt. Fission Core destroyed. Penetrated by Slug. R-10 Processor collects Wheel. Penetrated by Slug. Map ----- +----------------------------------------------------+ | + "" "" ## """" """" ############???###?# | | " " # ##?"""" """" ########??##???????? | | "T" #! ## """" """" ##########?##?#?#??? | | """ # ! ## """" """" #########?##???? ??? | | # ## ############ ? ? | | #+######+##############/################## ? | | ############# "?"???? | | ############# ""? ?"? | | ############? ""???"" | | ##+############# ? | | # ### """ """ | | #####################k # ### """ """ | | # # # " " " " " ### """??"? | | # """ # # " " " " " ### ?? | | ? ?? ? # """ # # " " " " " ### """?"?? | | ? ? ? ?# """ + + " " " " " ### """ """ | | ? ? # "" #* R # " " " " " ### """ "?" | | ??????? ? # """ F" #% # " " " " " ### ? ? ? | | ?? ? ? ?# """ " #! # " " " " " ### ? ? | | ????? ? ? # """ "" # # " " " " " #####?##?#? | | ???? ? ? # # # " " " " " ##########? | | ??????? ########## # ######?#### | | ???????? ?######### #################?####?# | | ???????? ########## # ##? ? ? ??? | | ?????????###?##?##### # """ """ ### ??""?## | | ?????????######?##### @# """ """ ###??"Y" # | | ????????#??###?###### # """ """ ?## ? ? ?? | | ???????????#?##?##### # ??? ?? | | ?????????############ h# """ """ ###? ? # | | ??????????########### h + """ """ ###??#+##? | | ???????????##?##?#### # """ ""? ? # ? ??? #?? | | ???????????########## R # ? # ??? ? ??? | | ???????????# ?#?#k # # ???? ??? | | ????????????? ? ?## # ? ??? ????? | | ?????????????? ? + p+ ? ? # ???????? | | ???????????????????? k#############? ????????? | | ???????????????"???k ##?#######?##? ????????? | | ???????????????? ?# """A ???#?#??##?????????????? | | ?????????????????## """ #??#?##????????????????? | | ?????????????????????"?" ?#?#???????????????????? | | ?????????????????????""? ??#????????????????????? | | ?????????????????????????????????????????????????? | | ?????????????????????????????????????????????????? | | ?????????????????????????????????????????????????? | | ?????????????????????????????????????????????????? | | ?????????????????????????????????????????????????? | | ?????????????????????????????????????????????????? | | ?????????????????????????????????????????????????? | | ?????????????????????????????????????????????????? | | ?????????????????????????????????????????????????? | +----------------------------------------------------+ Best States ------------- Heat Dissipation 48 Energy Generation 29 Energy Capacity 480 Matter Stores 300 Matter Capacity 300 Sight Range 16 Terrain Scan Range 16 Terrain Scan Density 210 Additional Mass Support 6 Armor Coverage 225 Evasion (%) 55 Recoil Reduction 2 Item Schematics ----------------- None Robot Schematics ------------------ None Fabricated ------------ Nothing Alien Tech Used ----------------- None Achievements -------------- More Dakka Please Omniscient Cartographer Challenges ------------ None Game ------ Seed MassCommKatana Manual? 0 Play Time 00:34:53 Cumulative 13.2 hours Start 2024.05.29 @ 23:44:03 End 2024.05.30 @ 11:53:05 Sessions 4 Manual Loads 0 Difficulty Rogue Special Mode None Game No. 14 Rogue 14 Adventurer 0 Explorer 0 Win Type - Total 0 Types 0/0/0/0/0/0/0/0/0 Lore% 22 Gallery% 24 Achievement% 22 Wizard Run 0 Options --------- Layout 0 ASCII 0 Keyboard 1 Movement Vi Keybinds 1 Fullscreen 0 Font 16/SmallcapsGlow Map View 88x55 Zoom Use 0% Tactical HUD 0 Map Filters NONE Filters NONE Steam 1 RUN: 72eea1a3-ab30-4cbc-b24c-cb5f5231f85a